fUSD/lending_fUSD_20240704
["ID","MTS","AMOUNT","RATE_DAILY","PERIOD"]
[331119956,1720088875783,-151.0,0.00021917,2]
[331119957,1720088875823,-500.0,0.00021917,4]
[331119958,1720088875863,-500.0,0.00021917,4]
[331119959,1720088875901,-500.0,0.00021917,4]
[331119960,1720088875943,-151.0,0.00021917,2]
[331119961,1720088875984,-500.0,0.00021917,4]
[331119962,1720088876027,-500.0,0.00021917,4]
[331119963,1720088876069,-1807.98,0.00021917,4]
[331119964,1720088876109,-500.0,0.00021917,4]
[331119965,1720088876149,-1807.98,0.00021917,4]
[331119966,1720088876187,-500.0,0.00021917,4]
[331119967,1720088876228,-1807.98,0.00021917,4]
[331119968,1720088876269,-500.0,0.00021917,4]
[331119969,1720088876312,-500.0,0.00021917,4]
[331119970,1720088876351,-500.0,0.00021917,4]
[331119971,1720088876393,-1807.98,0.00021917,4]
[331119972,1720088876432,-500.0,0.00021917,4]
[331119973,1720088876472,-1808.14978597,0.00021917,4]
[331119974,1720088876512,-173.336137,0.00021917,2]
[331119975,1720088876708,-500.0,0.00021917,4]
[331119976,1720088876747,-500.0,0.00021917,4]
[331119977,1720088876789,-500.0,0.00021917,4]
[331119978,1720088876829,-500.0,0.00021917,4]
[331119979,1720088876868,-500.0,0.00021917,4]
[331119980,1720088876905,-500.0,0.00021917,4]
[331119981,1720088876956,-500.0,0.00021917,4]
[331119982,1720088876995,-500.0,0.00021917,4]
[331119983,1720088877036,-500.0,0.00021917,4]
[331119984,1720088877076,-500.0,0.00021917,4]
[331119985,1720088877118,-500.0,0.00021917,4]
[331119986,1720088877159,-643.72510889,0.00021917,4]
[331119987,1720088877199,-500.0,0.00021917,4]
[331119988,1720088877240,-500.0,0.00021917,4]
[331119989,1720088877280,-571.41,0.00021917,4]
[331119990,1720088877319,-500.0,0.00021917,4]
[331119991,1720088877357,-571.41,0.00021917,4]
[331119992,1720088877397,-500.0,0.00021917,4]
[331119993,1720088877436,-500.0,0.00021917,4]
[331119994,1720088877476,-500.0,0.00021917,4]
[331119995,1720088877516,-571.41,0.00021917,4]
[331119996,1720088877559,-500.0,0.00021917,4]
[331119997,1720088877605,-500.0,0.00021917,4]
[331119998,1720088877647,-571.41,0.00021917,4]
[331119999,1720088877689,-500.0,0.00021917,4]
[331120000,1720088877727,-500.0,0.00021917,4]
[331120001,1720088877768,-500.0,0.00021917,4]
[331120002,1720088877808,-500.0,0.00021917,4]
[331120003,1720088877847,-500.0,0.00021917,4]
[331120004,1720088877886,-500.0,0.00021917,4]
[331120005,1720088877925,-1423.98,0.00021917,4]
[331120006,1720088877964,-500.0,0.00021917,4]
[331120007,1720088878002,-500.0,0.00021917,4]
[331120008,1720088878042,-1423.98,0.00021917,4]
[331120009,1720088878084,-500.0,0.00021917,4]
[331120010,1720088878125,-500.0,0.00021917,4]
[331120011,1720088878167,-1423.98,0.00021917,4]
[331120012,1720088878208,-500.0,0.00021917,4]
[331120013,1720088878250,-500.0,0.00021917,4]
[331120014,1720088878292,-1423.98,0.00021917,4]
[331120015,1720088878334,-500.0,0.00021917,4]
[331120016,1720088878372,-500.0,0.00021917,4]
[331120017,1720088878409,-500.0,0.00021917,4]
[331120018,1720088878448,-1423.98,0.00021917,4]
[331120019,1720088878486,-500.0,0.00021917,4]
[331120020,1720088878525,-500.0,0.00021917,4]
[331120021,1720088878561,-500.0,0.00021917,4]
[331120022,1720088878598,-1423.98,0.00021917,4]
[331120023,1720088878636,-500.0,0.00021917,4]
[331120024,1720088878674,-500.0,0.00021917,4]
[331120025,1720088878711,-500.0,0.00021917,4]
[331120026,1720088878748,-500.0,0.00021917,4]
[331120027,1720088878788,-500.0,0.00021917,4]
[331120028,1720088878826,-1423.98,0.00021917,4]
[331120029,1720088878864,-500.84257642,0.00021917,4]
[331120030,1720088878901,-500.0,0.00021917,4]
[331120031,1720088878939,-500.0,0.00021917,4]
[331120032,1720088878975,-477.29888177,0.00021917,4]
[331120033,1720088879011,-500.0,0.00021917,4]
[331120034,1720088879048,-1423.98,0.00021917,4]
[331120035,1720088879084,-500.0,0.00021917,4]
[331120036,1720088879119,-500.0,0.00021917,4]
[331120037,1720088879156,-500.0,0.00021917,4]
[331120038,1720088879194,-1423.98,0.00021917,4]
[331120039,1720088879230,-500.0,0.00021917,4]
[331120040,1720088879264,-500.0,0.00021917,4]
[331120041,1720088879298,-500.0,0.00021917,4]
[331120042,1720088879334,-1423.98,0.00021917,4]
[331120043,1720088879368,-500.0,0.00021917,4]
[331120044,1720088879402,-500.0,0.00021917,4]
[331120045,1720088879437,-495.16,0.00021917,4]
[331120046,1720088879472,-1423.98,0.00021917,4]
[331120047,1720088879508,-500.0,0.00021917,4]
[331120048,1720088879545,-1423.98,0.00021917,4]
[331120049,1720088879579,-500.0,0.00021917,4]
[331120050,1720088879618,-500.0,0.00021917,4]
[331120051,1720088879654,-571.41,0.00021917,4]
[331120052,1720088879691,-500.0,0.00021917,4]
[331120053,1720088879728,-1423.98,0.00021917,4]
[331120054,1720088879766,-500.0,0.00021917,4]
[331120055,1720088879807,-500.0,0.00021917,4]
[331120056,1720088879842,-571.41,0.00021917,4]
[331120057,1720088879880,-1423.98,0.00021917,4]
[331120058,1720088879918,-500.0,0.00021917,4]
[331120059,1720088879957,-500.0,0.00021917,4]
[331120060,1720088879996,-500.0,0.00021917,4]
[331120061,1720088880035,-571.41,0.00021917,4]
[331120062,1720088880077,-1423.98,0.00021917,4]
[331120063,1720088880119,-500.0,0.00021917,4]
[331120064,1720088880159,-500.0,0.00021917,4]
[331120065,1720088880200,-500.0,0.00021917,4]
[331120066,1720088880244,-571.41,0.00021917,4]
[331120067,1720088880290,-1423.98,0.00021917,4]
[331120068,1720088880337,-500.0,0.00021917,4]
[331120069,1720088880382,-500.0,0.00021917,4]
[331120070,1720088880427,-500.0,0.00021917,4]
[331120071,1720088880471,-571.41,0.00021917,4]
[331120072,1720088880515,-500.0,0.00021917,4]
[331120073,1720088880559,-616.60078047,0.00021917,4]
[331120074,1720088880609,-500.0,0.00021917,4]
[331120075,1720088880654,-1423.98,0.00021917,4]
[331120076,1720088880695,-229.64,0.00021917,4]
[331120077,1720088880882,-571.41,0.00021917,4]
[331120078,1720088880928,-1423.98,0.00021917,4]
[331120079,1720088880968,-500.0,0.00021917,4]
[331120080,1720088881007,-500.0,0.00021917,4]
[331120081,1720088881047,-500.0,0.00021917,4]
[331120082,1720088881084,-571.41,0.00021917,4]
[331120083,1720088881122,-1423.98,0.00021917,4]
[331120084,1720088881160,-500.0,0.00021917,4]
[331120085,1720088881200,-500.0,0.00021917,4]
[331120086,1720088881239,-500.0,0.00021917,4]
[331120087,1720088881280,-500.0,0.00021917,4]
[331120088,1720088881320,-571.41,0.00021917,4]
[331120089,1720088881361,-1423.98,0.00021917,4]
[331120090,1720088881399,-500.0,0.00021917,4]
[331120091,1720088881437,-349.81,0.00021917,4]
[331120092,1720088881476,-500.0,0.00021917,4]
[331120093,1720088881516,-500.0,0.00021917,4]
[331120094,1720088881558,-571.41,0.00021917,4]
[331120095,1720088881604,-500.0,0.00021917,4]
[331120096,1720088881645,-1423.98,0.00021917,4]
[331120097,1720088881687,-500.0,0.00021917,4]
[331120098,1720088881725,-500.0,0.00021917,4]
[331120099,1720088881767,-571.41,0.00021917,4]
[331120100,1720088881809,-1423.98,0.00021917,4]
[331120101,1720088881848,-500.0,0.00021917,4]
[331120102,1720088881888,-500.0,0.00021917,4]
[331120103,1720088881928,-571.41,0.00021917,4]
[331120104,1720088881969,-500.0,0.00021917,4]
[331120105,1720088882011,-1423.98,0.00021917,4]
[331120106,1720088882055,-500.0,0.00021917,4]
[331120107,1720088882098,-500.0,0.00021917,4]
[331120108,1720088882142,-571.41,0.00021917,4]
[331120109,1720088882187,-500.0,0.00021917,4]
[331120110,1720088882232,-1424.17920697,0.00021917,4]
[331120111,1720088882278,-500.0,0.00021917,4]
[331120112,1720088882322,-507.70362585,0.00021917,4]
[331120113,1720088882364,-571.41,0.00021917,4]
[331120114,1720088882406,-500.0,0.00021917,4]
[331120115,1720088882448,-500.0,0.00021917,4]
[331120116,1720088882490,-500.0,0.00021917,4]
[331120117,1720088882535,-500.0,0.00021917,4]
[331120118,1720088882580,-571.41,0.00021917,4]
[331120119,1720088882623,-500.0,0.00021917,4]
[331120120,1720088882664,-500.0,0.00021917,4]
[331120121,1720088882705,-571.41,0.00021917,4]
[331120122,1720088882746,-500.0,0.00021917,4]
[331120123,1720088882787,-500.0,0.00021917,4]
[331120124,1720088882828,-571.41,0.00021917,4]
[331120125,1720088882869,-500.0,0.00021917,4]
[331120126,1720088882922,-500.0,0.00021917,4]
[331120127,1720088882966,-571.41,0.00021917,4]
[331120128,1720088883006,-500.0,0.00021917,4]
[331120129,1720088883050,-500.0,0.00021917,4]
[331120130,1720088883094,-571.41,0.00021917,4]
[331120131,1720088883136,-500.0,0.00021917,4]
[331120132,1720088883180,-500.0,0.00021917,4]
[331120133,1720088883225,-500.0,0.00021917,4]
[331120134,1720088883268,-500.0,0.00021917,4]
[331120135,1720088883314,-500.0,0.00021917,4]
[331120136,1720088883355,-571.41,0.00021917,4]
[331120137,1720088883395,-169.61964895,0.00021917,4]
[331120138,1720088883436,-500.0,0.00021917,4]
[331120139,1720088883479,-500.0,0.00021917,4]
[331120140,1720088883518,-571.52972111,0.00021917,4]
[331120141,1720088883560,-381.79412571,0.00021917,4]
[331120142,1720088883604,-500.0,0.00021917,4]
[331120143,1720088883643,-500.0,0.00021917,4]
[331120144,1720088883685,-500.0,0.00021917,4]
[331120145,1720088883724,-500.0,0.00021917,4]
[331120146,1720088883764,-500.0,0.00021917,4]
[331120147,1720088883806,-500.0,0.00021917,4]
[331120148,1720088883847,-500.0,0.00021917,4]
[331120149,1720088883888,-503.49929852,0.00021917,4]
[331120150,1720088883936,-500.0,0.00021917,4]
[331120151,1720088883982,-500.0,0.00021917,4]
[331120152,1720088884027,-500.0,0.00021917,4]
[331120153,1720088884068,-500.0,0.00021917,4]
[331120154,1720088884111,-511.88553714,0.00021917,4]
[331120155,1720088884154,-542.21841112,0.00021917,4]
[331120156,1720088884196,-656.98,0.00021917,4]
[331120157,1720088884239,-504.14461668,0.00021917,4]
[331120158,1720088884280,-500.0,0.00021917,4]
[331120159,1720088884323,-656.98,0.00021917,4]
[331120160,1720088884364,-500.0,0.00021917,4]
[331120161,1720088884407,-801.02,0.00021917,4]
[331120162,1720088884450,-1364.41,0.00021917,4]
[331120163,1720088884490,-500.0,0.00021917,4]
[331120164,1720088884529,-500.0,0.00021917,4]
[331120165,1720088884571,-801.02,0.00021917,4]
[331120166,1720088884609,-500.0,0.00021917,4]
[331120167,1720088884649,-656.98,0.00021917,4]
[331120168,1720088884687,-345.11969779,0.00021917,4]
[331120169,1720088884726,-1364.41,0.00021917,4]
[331120170,1720088884768,-801.02,0.00021917,4]
[331120171,1720088884809,-500.0,0.00021917,4]
[331120172,1720088884849,-656.98,0.00021917,4]
[331120173,1720088884890,-1364.41,0.00021917,4]
[331120174,1720088884934,-500.0,0.00021917,4]
[331120175,1720088884974,-500.0,0.00021917,4]
[331120176,1720088885277,-656.98,0.00021917,4]
[331120177,1720088885319,-336.86666795,0.00021917,4]
[331120178,1720088885359,-500.0,0.00021917,4]
[331120179,1720088885398,-1364.41,0.00021917,4]
[331120180,1720088885437,-801.02,0.00021917,4]
[331120181,1720088885478,-656.98,0.00021917,4]
[331120182,1720088885517,-801.02,0.00021917,4]
[331120183,1720088885560,-1364.41,0.00021917,4]
[331120184,1720088885604,-656.98,0.00021917,4]
[331120185,1720088885646,-544.26575683,0.00021917,4]
[331120186,1720088885687,-801.02,0.00021917,4]
[331120187,1720088885725,-500.0,0.00021917,4]
[331120188,1720088885766,-1364.41,0.00021917,4]
[331120189,1720088885808,-656.98,0.00021917,4]
[331120190,1720088885846,-801.02,0.00021917,4]
[331120191,1720088885884,-1364.41,0.00021917,4]
[331120192,1720088885924,-656.98,0.00021917,4]
[331120193,1720088885964,-801.02,0.00021917,4]
[331120194,1720088886004,-500.0,0.00021917,4]
[331120195,1720088886043,-656.98,0.00021917,4]
[331120196,1720088886082,-1364.41,0.00021917,4]
[331120197,1720088886120,-801.02,0.00021917,4]
[331120198,1720088886158,-656.98,0.00021917,4]
[331120199,1720088886196,-1364.41,0.00021917,4]
[331120200,1720088886234,-801.02,0.00021917,4]
[331120201,1720088886275,-656.98,0.00021917,4]
[331120202,1720088886322,-1364.41,0.00021917,4]
[331120203,1720088886360,-505.10171814,0.00021917,4]
[331120204,1720088886407,-801.02,0.00021917,4]
[331120205,1720088886454,-656.98,0.00021917,4]
[331120206,1720088886500,-500.0,0.00021917,4]
[331120207,1720088886546,-301.0015644,0.00021917,4]
[331120208,1720088886596,-1364.41,0.00021917,4]
[331120209,1720088886636,-801.02,0.00021917,4]
[331120210,1720088886683,-656.98,0.00021917,4]
[331120211,1720088886731,-500.0,0.00021917,4]
[331120212,1720088886782,-1364.41,0.00021917,4]
[331120213,1720088886823,-500.0,0.00021917,4]
[331120214,1720088886871,-656.98,0.00021917,4]
[331120215,1720088886919,-801.02,0.00021917,4]
[331120216,1720088886960,-500.0,0.00021917,4]
[331120217,1720088887008,-500.0,0.00021917,4]
[331120218,1720088887055,-1364.41,0.00021917,4]
[331120219,1720088887100,-801.02,0.00021917,4]
[331120220,1720088887147,-500.0,0.00021917,4]
[331120221,1720088887197,-656.98,0.00021917,4]
[331120222,1720088887236,-1364.41,0.00021917,4]
[331120223,1720088887279,-500.0,0.00021917,4]
[331120224,1720088887326,-500.0,0.00021917,4]
[331120225,1720088887365,-1364.41,0.00021917,4]
[331120226,1720088887411,-656.98,0.00021917,4]
[331120227,1720088887457,-500.0,0.00021917,4]
[331120228,1720088887497,-500.0,0.00021917,4]
[331120229,1720088887537,-500.0,0.00021917,4]
[331120230,1720088887578,-801.02,0.00021917,4]
[331120231,1720088887625,-500.0,0.00021917,4]
[331120232,1720088887667,-1364.41,0.00021917,4]
[331120233,1720088887713,-500.0,0.00021917,4]
[331120234,1720088887761,-500.0,0.00021917,4]
[331120235,1720088887812,-246.12,0.00021917,4]
[331120236,1720088887858,-801.02,0.00021917,4]
[331120237,1720088887902,-656.98,0.00021917,4]
[331120238,1720088887940,-500.0,0.00021917,4]
[331120239,1720088887979,-1364.41,0.00021917,4]
[331120240,1720088888021,-500.0,0.00021917,4]
[331120241,1720088888074,-801.02,0.00021917,4]
[331120242,1720088888118,-656.98,0.00021917,4]
[331120243,1720088888160,-1364.41,0.00021917,4]
[331120244,1720088888202,-889.05,0.00021917,4]
[331120245,1720088888243,-656.98,0.00021917,4]
[331120246,1720088888291,-801.02,0.00021917,4]
[331120247,1720088888337,-1364.41,0.00021917,4]
[331120248,1720088888377,-500.0,0.00021917,4]
[331120249,1720088888415,-500.0,0.00021917,4]
[331120250,1720088888453,-656.98,0.00021917,4]
[331120251,1720088888498,-801.02,0.00021917,4]
[331120252,1720088888538,-1364.41,0.00021917,4]
[331120253,1720088888583,-889.05,0.00021917,4]
[331120254,1720088888628,-500.0,0.00021917,4]
[331120255,1720088888673,-500.0,0.00021917,4]
[331120256,1720088888719,-500.0,0.00021917,4]
[331120257,1720088888766,-424.69513639,0.00021917,4]
[331120260,1720089031698,-300.0,0.00013799,2]
[331120261,1720089031709,-10657.539,0.000138,2]
[331120262,1720089031720,-92308.6044,0.000138,2]
[331120263,1720089031730,-155.50860384,0.00014966,2]
[331120264,1720089031739,-155.18510572,0.00014973,2]
[331120265,1720089031750,-240.0,0.00015121,2]
[331120266,1720089031759,-270.64252158,0.00015287,2]
[331120267,1720089031769,-1401.61075,0.00017899,2]
[331120268,1720089031779,-3969.81959498,0.00018919,2]
[331120269,1720089031788,-662.0782888,0.00018919,2]
[331120270,1720089031798,-628.1584348,0.00018919,2]
[331120271,1720089031808,-161.39021817,0.00018999,2]
[331120272,1720089031819,-244.69865331,0.00018999,2]
[331120273,1720089031829,-2660.89755206,0.00018999,2]
[331120274,1720089031838,-196.30304221,0.00018999,2]
[331120275,1720089031848,-394.26768813,0.00018999,2]
[331120276,1720089031857,-312.28848083,0.00018999,2]
[331120277,1720089031867,-338.8364771,0.00018999,2]
[331120278,1720089031879,-546.91634939,0.00018999,2]
[331120279,1720089031888,-155.56363695,0.00018999,2]
[331120280,1720089031898,-518.11940533,0.00018999,2]
[331120281,1720089031908,-378.74844958,0.00019069,2]
[331120282,1720089031918,-384.15255647,0.00019069,2]
[331120283,1720089031927,-198.41459947,0.00019069,2]
[331120284,1720089031937,-487.38361115,0.00019069,2]
[331120285,1720089031947,-155.0,0.00019069,2]
[331120286,1720089031956,-405.32512675,0.00019069,2]
[331120287,1720089031966,-159.06957682,0.00019069,2]
[331120288,1720089031975,-163.84092695,0.00019069,2]
[331120289,1720089031985,-155.0,0.00019069,2]
[331120290,1720089031995,-356.26776045,0.00019069,2]
[331120291,1720089032008,-155.0,0.00019069,2]
[331120292,1720089032018,-242.43380697,0.00019077,2]
[331120293,1720089032028,-158.47133143,0.00019077,2]
[331120294,1720089032038,-242.43380697,0.00019077,2]
[331120295,1720089032048,-641.77372059,0.00019175,2]
[331120296,1720089032057,-263.58284568,0.00019175,2]
[331120297,1720089032067,-161.939017,0.00019352,2]
[331120298,1720089032077,-519.99643975,0.00019389,2]
[331120299,1720089032086,-299.9521953,0.00019451,2]
[331120300,1720089032096,-200.0,0.00019541,2]
[331120301,1720089032105,-250.0,0.00019715,2]
[331120302,1720089032115,-173.72389627,0.00019964,2]
[331120303,1720089032126,-205.41084335,0.0001999,2]
[331120304,1720089032135,-202.72559596,0.0001999,2]
[331120305,1720089032145,-625.86274909,0.0001999,2]
[331120306,1720089032158,-474.78077656,0.0001999,2]
[331120307,1720089032168,-155.0,0.0001999,2]
[331120308,1720089032178,-155.0,0.0001999,2]
[331120309,1720089032188,-155.0,0.0001999,2]
[331120310,1720089032199,-544.69316985,0.0001999,2]
[331120311,1720089032209,-227.14852012,0.00019997,2]
[331120312,1720089032219,-179.21628707,0.00019997,2]
[331120313,1720089032229,-250.0,0.00020043,2]
[331120314,1720089032239,-2502.07870263,0.000201,2]
[331120315,1720089032548,-308.08993571,0.00018999,2]
[331120316,1720089032558,-319.76305025,0.000201,2]
[331120317,1720089032571,-1440.43885638,0.000201,2]
[331120322,1720089038412,-163.79453717,0.00018999,2]
[331120324,1720089038423,-269.66585557,0.00019069,2]
[331120326,1720089038433,-366.13665381,0.00019725,2]
[331120328,1720089038444,-174.84486519,0.00019964,2]
[331120331,1720089038735,-451.0178839,0.00019964,2]
[331120332,1720089038745,-652.22903816,0.000205,3]
[331120333,1720089038757,-10830.77096184,0.000205,3]
[331120334,1720089038768,-655.2686189,0.00021,2]
[331120335,1720089038778,-11483.0,0.00021,5]
[331120336,1720089038788,-655.26861881,0.0002121,2]
[331120337,1720089038798,-655.26861881,0.0002142,2]
[331120338,1720089038808,-180.0,0.00021583,2]
[331120339,1720089038819,-655.26861881,0.0002163,2]
[331120340,1720089038829,-242.99271987,0.00021717,2]
[331120341,1720089038838,-3173.3999109,0.00021754,2]
[331120342,1720089038848,-507.88715182,0.00021807,2]
[331120343,1720089038858,-317.07879292,0.00021816,2]
[331120344,1720089038868,-154.62831452,0.00021817,2]
[331120345,1720089038878,-1001.27147373,0.00021817,2]
[331120346,1720089038888,-655.26861881,0.0002184,2]
[331120347,1720089038898,-242.99271983,0.00021847,2]
[331120348,1720089038907,-153.27,0.00021897,2]
[331120349,1720089038917,-92454.6768114,0.00021905,2]
[331120350,1720089038927,-4633.2182238,0.00021905,2]
[331120351,1720089038936,-9429.3389552,0.00021905,2]
[331120352,1720089038946,-62030.73570757,0.00021907,3]
[331120353,1720089038958,-5051.32890956,0.00021907,3]
[331120354,1720089038987,-437.70943335,0.00021907,3]
[331120426,1720089039945,-159.06957682,0.00018999,2]
[331120427,1720089039955,-561.78931578,0.00021907,3]
[331120428,1720089039968,-442.71065152,0.00021907,3]
[331120429,1720089039981,-478.93646689,0.00021907,3]
[331120430,1720089039994,-1997.0,0.00021907,3]
[331120431,1720089040007,-3100.09378254,0.00021907,3]
[331120472,1720089043870,-227.14852012,0.0001999,2]
[331120473,1720089043879,-8870.54936509,0.00021907,3]
[331120474,1720089043888,-6423.3723685,0.00021907,3]
[331120475,1720089043898,-813.040514,0.00021907,3]
[331120476,1720089043934,-469.14645008,0.00021907,3]
[331120594,1720089047127,-527.17227954,0.00019997,2]
[331120596,1720089047138,-1327.74776735,0.00021907,3]
[331120598,1720089047150,-51216.5438173,0.00021907,3]
[331120600,1720089047161,-619.76020313,0.00021907,3]
[331120616,1720089047395,-1175.55550787,0.00021907,3]
[331120617,1720089047407,-1412.93673964,0.00021907,3]
[331120618,1720089047424,-4814.4244213,0.00021907,3]
[331120619,1720089047660,-2990.778085,0.00021907,3]
[331120620,1720089047674,-21708.48171763,0.00021907,3]
[331120621,1720089047685,-4714.6252097,0.00021907,3]
[331120622,1720089047697,-79605.00851429,0.00021907,3]
[331120623,1720089047708,-6607.42692437,0.00021907,3]
[331120656,1720089121769,4275.0,0.00025,60]
[331120658,1720089342906,301.21176456,0.000112,2]
[331120659,1720089431355,641.77372059,0.000112,2]
[331120660,1720089463006,213.35664754,0.000112,2]
[331120661,1720089568121,641.77372059,0.000112,2]
[331120662,1720089649850,1271.27601338,0.00011199,2]
[331120663,1720089659250,641.77372059,0.000112,2]
[331120664,1720089691632,1015.73180718,0.00011199,2]
[331120665,1720089696442,955.72011969,0.00011199,2]
[331120666,1720089699068,3100.0,0.00025,60]
[331120667,1720089702634,199.85,0.00025406,120]
[331120668,1720089710143,9236.41322618,0.00011199,2]
[331120669,1720089807855,7813.4063695,0.00011199,2]
[331120670,1720089812186,411.64233461,0.00011199,2]
[331120671,1720089824056,661.16435023,0.00011199,2]
[331120672,1720089829798,650.69302056,0.00011199,2]
[331120673,1720089839509,698.48495123,0.00011199,2]
[331120674,1720089852254,375.40430521,0.00011199,2]
[331120675,1720089862626,632.56559168,0.00011199,2]
[331120676,1720089866401,518.69562264,0.00011199,2]
[331120677,1720089872446,466.76010482,0.00011199,2]
[331120678,1720089873675,193.60914616,0.00011199,2]
[331120679,1720089879687,483.56532851,0.00011199,2]
[331120680,1720089879908,2700.0,0.00026,120]
[331120681,1720089884384,626.74096445,0.00011199,2]
[331120682,1720089887014,292.57856873,0.00011199,2]
[331120683,1720089891556,533.58557093,0.00011199,2]
[331120684,1720089903893,300.97726413,0.00011199,2]
[331120685,1720089910375,163.82863023,0.00011199,2]
[331120686,1720089912201,411.31336595,0.00011199,2]
[331120687,1720089912694,258.88603077,0.00011199,2]
[331120688,1720089915956,155.04631817,0.00011199,2]
[331120689,1720089916801,438.6008341,0.00011199,2]
[331120690,1720089917142,174.21721352,0.00011199,2]
[331120691,1720089919909,155.39421898,0.00011199,2]
[331120692,1720089920699,233.01048022,0.00011199,2]
[331120693,1720089921510,235.5502268,0.00011199,2]
[331120694,1720089927030,155.1692431,0.00011199,2]
[331120695,1720089928629,627.05345508,0.00011199,2]
[331120696,1720089928739,166.11576568,0.00011199,2]
[331120697,1720089934304,438.6008341,0.00011199,2]
[331120698,1720089935234,209.62168544,0.00011199,2]
[331120699,1720089936111,346.47813981,0.00011199,2]
[331120700,1720089936727,155.10345692,0.00011199,2]
[331120701,1720089938313,379.089191,0.00011199,2]
[331120702,1720089939526,155.54915044,0.00011199,2]
[331120703,1720089941879,155.0,0.00011199,2]
[331120704,1720089942575,253.66525961,0.00011199,2]
[331120705,1720089943562,155.0,0.00011199,2]
[331120706,1720089944107,211.56648654,0.00011199,2]
[331120707,1720089944637,159.78064478,0.00011199,2]
[331120708,1720089944972,155.72904753,0.00011199,2]
[331120709,1720089946605,202.28208855,0.00011199,2]
[331120710,1720089946707,155.43629329,0.00011199,2]
[331120711,1720089947286,155.0,0.00011199,2]
[331120712,1720089949419,155.0,0.00011199,2]
[331120713,1720089950172,172.1320514,0.00011199,2]
[331120714,1720089950997,155.53694078,0.00011199,2]
[331120715,1720089952181,310.0,0.00011199,2]
[331120716,1720089955661,218.10166328,0.00011199,2]
[331120717,1720089956083,308.29972031,0.00011199,2]
[331120718,1720089956252,202.60743372,0.00011199,2]
[331120719,1720089957143,264.6200961,0.00011199,2]
[331120720,1720089959818,155.0,0.00011199,2]
[331120721,1720089959910,155.0,0.00011199,2]
[331120722,1720089960380,223.81688927,0.00011199,2]
[331120723,1720089961006,155.0,0.00011199,2]
[331120724,1720089962111,155.36379132,0.00011199,2]
[331120725,1720089965646,298.39636076,0.00011199,2]
[331120726,1720089966837,196.45941365,0.00011199,2]
[331120727,1720089969688,217.78950584,0.00011199,2]
[331120728,1720089972649,302.3204216,0.00011199,2]
[331120729,1720089986934,177.513979,0.00011199,2]
[331120730,1720089987159,171.04080637,0.00011199,2]
[331120731,1720089989725,155.0,0.00011199,2]
[331120732,1720089993736,305.56742136,0.00011199,2]
[331120733,1720089994048,155.15236326,0.00011199,2]
[331120734,1720089994917,155.0,0.00011199,2]
[331120735,1720090010856,155.28352034,0.00011199,2]
[331120736,1720090010891,846.52314848,0.00011199,2]
[331120737,1720090012583,291.4884068,0.00011199,2]
[331120738,1720090013272,366.58364766,0.00011199,2]
[331120739,1720090018327,155.4066957,0.00011199,2]
[331120740,1720090022699,310.63053119,0.00011199,2]
[331120741,1720090023984,364.41692002,0.00011199,2]
[331120742,1720090026156,717.89169523,0.00011199,2]
[331120743,1720090035545,475.52856478,0.00011199,2]
[331120744,1720090044205,220.33200542,0.00011199,2]
[331120745,1720090104771,157.51015745,0.00011199,2]